fUSD/lending_fUSD_20260205
["ID","MTS","AMOUNT","RATE_DAILY","PERIOD"]
[404558872,1770289846032,-160.0,0.000179,3]
[404558873,1770289846043,-9068.51831638,0.000179,3]
[404558874,1770289846053,-546.14569253,0.000179,2]
[404558875,1770289846063,-25583.84967898,0.000179,2]
[404558876,1770289846075,-5136.20543162,0.000179,2]
[404558877,1770289846085,-2796.81476797,0.000179,2]
[404558878,1770289846095,-411.07033882,0.000179,2]
[404558879,1770289846106,-14426.0,0.000179,2]
[404558880,1770289846117,-700.0,0.0001797,2]
[404558881,1770289846127,-1101.54215647,0.0001797,2]
[404558882,1770289846138,-500.0,0.00017973,2]
[404558883,1770289846148,-500.0,0.00017973,2]
[404558884,1770289846158,-500.0,0.00017973,2]
[404558885,1770289846169,-500.0,0.00017973,2]
[404558886,1770289846179,-500.0,0.00017973,2]
[404558887,1770289846189,-500.0,0.00017973,2]
[404558888,1770289846199,-500.0,0.00017973,2]
[404558889,1770289846210,-500.0,0.00017973,2]
[404558890,1770289846220,-500.0,0.00017973,2]
[404558891,1770289846230,-500.0,0.00017973,2]
[404558892,1770289846240,-561.5530591,0.00017973,2]
[404558893,1770289846250,-500.0,0.00017973,2]
[404558894,1770289846449,-500.0,0.00017973,2]
[404558895,1770289846474,-500.0,0.00017973,2]
[404558896,1770289846484,-309.44398841,0.00017973,2]
[404558897,1770289846494,-500.0,0.00017973,2]
[404558898,1770289846504,-500.0,0.00017973,2]
[404558899,1770289846514,-500.0,0.00017973,2]
[404558900,1770289846524,-500.0,0.00017973,2]
[404558901,1770289846534,-500.0,0.00017973,2]
[404558902,1770289846544,-500.0,0.00017973,2]
[404558903,1770289846554,-160.11845722,0.00017973,2]
[404558904,1770289846563,-500.0,0.00017973,2]
[404558905,1770289846574,-500.0,0.00017973,2]
[404558906,1770289846584,-500.0,0.00017973,2]
[404558907,1770289846593,-500.0,0.00017973,2]
[404558908,1770289846603,-500.0,0.00017973,2]
[404558909,1770289846613,-500.0,0.00017973,2]
[404558910,1770289846622,-500.0,0.00017973,2]
[404558911,1770289846632,-500.0,0.00017973,2]
[404558912,1770289846642,-500.0,0.00017973,2]
[404558913,1770289846651,-500.0,0.00017973,2]
[404558914,1770289846661,-500.0,0.00017973,2]
[404558915,1770289846670,-500.0,0.00017973,2]
[404558916,1770289846679,-502.08032841,0.00017973,2]
[404558917,1770289846689,-520.97702983,0.00017973,2]
[404558918,1770289846699,-500.0,0.00017973,2]
[404558919,1770289846708,-500.0,0.00017973,2]
[404558920,1770289846718,-500.0,0.00017973,2]
[404558921,1770289846728,-500.0,0.00017973,2]
[404558922,1770289846738,-500.0,0.00017973,2]
[404558923,1770289846749,-500.0,0.00017973,2]
[404558924,1770289846758,-262.39107038,0.00017973,2]
[404558925,1770289846768,-500.0,0.00017973,2]
[404558926,1770289846777,-463671.3621919,0.00017997,2]
[404558927,1770289846787,-15932.3944952,0.00017997,2]
[404558928,1770289846800,-13257.0995731,0.00017997,2]
[404558929,1770289846809,-2954.2505613,0.00017997,2]
[404558930,1770289846821,-1557.7297862,0.00017997,2]
[404558931,1770289846830,-150.0,0.00017999,2]
[404558932,1770289846840,-150.0,0.00017999,2]
[404558933,1770289846849,-231.00018382,0.00017999,2]
[404558934,1770289846859,-1010.8044,0.00017999,2]
[404558935,1770289846870,-300.0,0.00017999,2]
[404558936,1770289846879,-300.0,0.00017999,2]
[404558937,1770289846889,-500.0,0.00017999,2]
[404558938,1770289846898,-500.0,0.00017999,2]
[404558939,1770289846909,-500.0,0.00017999,2]
[404558940,1770289846919,-500.0,0.00017999,2]
[404558941,1770289846929,-500.0,0.00017999,2]
[404558942,1770289846938,-448.31,0.00017999,2]
[404558943,1770289846948,-300.0,0.00017999,2]
[404558944,1770289846957,-778.44145262,0.00017999,2]
[404558945,1770289846967,-300.0,0.00017999,2]
[404558946,1770289846976,-666.0,0.00017999,2]
[404558947,1770289846986,-300.0,0.00017999,2]
[404558948,1770289846996,-666.0,0.00017999,2]
[404558949,1770289847006,-666.0,0.00017999,2]
[404558950,1770289847018,-1195957.05153124,0.00018,2]
[404558951,1770289847027,-1165571.7269103,0.00018,2]
[404558952,1770289847469,-687.4,0.00018,2]
[404558953,1770289848078,-150.0,0.00011409,2]
[404558954,1770289848089,-150.0,0.00011464,2]
[404558955,1770289848099,-200.0,0.00011519,2]
[404558956,1770289848109,-1806.13744897,0.00018,2]
[404558957,1770289848128,-858.87950471,0.00018,2]
[404558958,1770289848140,-969.01616142,0.00018,2]
[404558959,1770289848236,-6211.49330287,0.00011099,2]
[404558960,1770289848442,-1660.83887168,0.00011099,2]
[404558961,1770289848562,-9802.31517512,0.00011099,2]
[404558962,1770289848572,-6746.33658335,0.00018,2]
[404558963,1770289848595,-4118.80589306,0.00018,2]
[404558983,1770289950115,-9000000.0,0.00043897,10]
[404558985,1770290109578,200.0,9.7e-05,3]
[404558986,1770290111777,400.0,9.8e-05,3]
[404558987,1770290113767,700.0,9.9e-05,3]
[404558988,1770290115856,900.0,0.0001,3]
[404558991,1770290610632,152.0,0.00013858,8]
[404558992,1770290611003,152.0,0.00013504,7]
[404559180,1770291032066,-192.0,9.2e-05,2]
[404559182,1770291032076,-226.0,9.2e-05,2]
[404559183,1770291032086,-398.40181197,9.213e-05,2]
[404559184,1770291032099,-250.0,9.227e-05,2]
[404559185,1770291032109,-1.67544195,9.253e-05,2]
[404559186,1770291032121,-185.87455805,9.253e-05,2]
[404559187,1770291032132,-545.792757,9.95e-05,2]
[404559188,1770291032142,-160.35043239,0.0001,2]
[404559189,1770291032151,-728.178456,0.00010008,2]
[404559190,1770291032160,-228.56136507,0.0001002,2]
[404559191,1770291032172,-317.58432746,0.0001002,2]
[404559192,1770291032181,-635.72594045,0.0001002,2]
[404559193,1770291032192,-310.31,0.0001002,2]
[404559194,1770291032204,-272.90804793,0.0001002,2]
[404559195,1770291032219,-2952.94751725,0.0001002,2]
[404559196,1770291032237,-1220.90547768,0.0001002,2]
[404559197,1770291032247,-1094.45298929,0.00010057,2]
[404559198,1770291032261,-105.54701071,0.00010057,2]
[404559199,1770291032283,-300.0,0.00010057,2]
[404559200,1770291032294,-783.86021129,0.00010057,2]
[404559201,1770291032311,-416.13978871,0.00010057,2]
[404559202,1770291032321,-50200.37972331,0.00010058,2]
[404559203,1770291032331,-154.5345725,0.00010098,2]
[404559204,1770291032341,-150.0,0.00010107,2]
[404559205,1770291032351,-2239.56818661,0.00010108,2]
[404559206,1770291032361,-244638.08288216,0.00010108,2]
[404559207,1770291032373,-34931.17073204,0.00010108,2]
[404559208,1770291032385,-73323.41188258,0.00010108,2]
[404559209,1770291032398,-28213.87227879,0.00010108,2]
[404559210,1770291032410,-946.4836003,0.00010108,2]
[404559215,1770291032453,-841.73374526,0.00010108,2]
[404559217,1770291032467,-6889.881243,0.00010108,2]
[404559219,1770291032479,-701.13,0.00010108,2]
[404559221,1770291032491,-2643.57054066,0.00010108,2]
[404559223,1770291032527,-1975.34666119,0.00010108,2]
[404559224,1770291032719,-6753.17206689,0.00010108,2]
[404559228,1770291038252,-903.93718342,0.00010108,2]
[404559229,1770291038265,-1126.6900002,0.00010108,2]
[404559230,1770291038278,-308.5174995,0.00010108,2]
[404559231,1770291038301,-419.12847376,0.00010108,2]
[404559232,1770291038318,-294.35581251,0.00010108,2]
[404559233,1770291038332,-467.1275021,0.00010108,2]
[404559234,1770291038357,-35080.45007758,0.00010108,2]
[404559235,1770291038371,-446.49837639,0.00010108,2]
[404559237,1770291040268,-801.54783843,0.00010108,2]
[404559238,1770291040279,-1230.89614206,0.00010108,2]
[404559240,1770291040487,-211468.04937231,0.00010108,2]
[404559241,1770291040499,-495.68719811,0.00010108,2]
[404559242,1770291040511,-2845099.25889076,0.00010108,2]
[404559243,1770291040522,-4123.3752,0.00010108,2]
[404559244,1770291040532,-2500.0,0.00010108,2]
[404559245,1770291040542,-250.0,0.0001012,2]
[404559246,1770291040552,-300.0,0.0001012,2]
[404559247,1770291040562,-250.0,0.0001012,2]
[404559248,1770291040572,-543.70924244,0.0001012,2]
[404559249,1770291040582,-188.17333529,0.00010136,2]
[404559250,1770291040592,-150.0,0.00010181,2]
[404559251,1770291040602,-150.0,0.00010181,2]
[404559252,1770291040612,-500.0,0.00010207,2]
[404559253,1770291040622,-500.0,0.00010207,2]
[404559254,1770291040632,-500.0,0.00010207,2]
[404559255,1770291040642,-500.0,0.00010207,2]
[404559256,1770291040652,-500.0,0.00010207,2]
[404559257,1770291040662,-500.0,0.00010207,2]
[404559259,1770291040672,-225.74993479,0.00010207,2]
[404559260,1770291040682,-500.0,0.00010207,2]
[404559261,1770291040692,-500.0,0.00010207,2]
[404559262,1770291040702,-500.0,0.00010207,2]
[404559263,1770291040712,-500.0,0.00010207,2]
[404559264,1770291040723,-500.0,0.00010207,2]
[404559265,1770291040733,-500.0,0.00010207,2]
[404559266,1770291040743,-500.0,0.00010207,2]
[404559267,1770291040754,-500.0,0.00010207,2]
[404559268,1770291040763,-500.0,0.00010207,2]
[404559269,1770291040774,-500.0,0.00010207,2]
[404559270,1770291040784,-251.3953049,0.00010236,2]
[404559271,1770291040794,-379.59384452,0.00010338,2]
[404559272,1770291040803,-714.96934667,0.00010846,2]
[404559273,1770291040813,-500.0,0.00010899,2]
[404559274,1770291040823,-4999.99,0.00010899,2]
[404559275,1770291040834,-150.99,0.00010899,2]
[404559276,1770291040845,-299.99,0.00010899,2]
[404559277,1770291040855,-3307.45,0.00010899,2]
[404559278,1770291040864,-499.99,0.00010899,2]
[404559279,1770291040874,-9999.99,0.00010899,2]
[404559280,1770291040884,-9999.99,0.00010899,2]
[404559281,1770291040895,-999.99,0.00010899,2]
[404559282,1770291040904,-9999.99,0.00010899,2]
[404559283,1770291040914,-5177.87455589,0.000109,2]
[404559284,1770291040924,-10549.8,0.00010915,2]
[404559285,1770291040934,-150.99,0.00010915,2]
[404559286,1770291040944,-420.0,0.00011062,2]
[404559287,1770291040953,-1680.0,0.00011062,2]
[404559288,1770291040964,-17864.61856266,0.00011099,2]
[404559289,1770291040977,-17864.61856264,0.00011099,2]
[404559290,1770291040987,-25630.93323916,0.00011099,2]
[404559291,1770291040998,-25630.93323911,0.00011099,2]
[404559292,1770291041009,-255.38497055,0.00011106,2]
[404559293,1770291041019,-255.0,0.00011108,2]
[404559294,1770291041029,-500.0,0.00011173,2]
[404559295,1770291041042,-4753.02,0.00011233,2]
[404559296,1770291041052,-715.0,0.00011285,2]
[404559297,1770291041062,-477.07,0.00011401,2]
[404559298,1770291041071,-3486.16,0.0001143,2]
[404559299,1770291041081,-502.96360645,0.00011447,2]
[404559300,1770291041091,-500.0,0.000115,2]
[404559301,1770291041103,-1600.0,0.00011673,2]
[404559302,1770291041113,-5177.87455583,0.00011682,2]
[404559303,1770291041123,-17864.61856264,0.00011762,2]
[404559304,1770291041133,-25630.93323911,0.00011762,2]
[404559305,1770291041143,-2239.56818661,0.00011774,2]
[404559306,1770291041153,-1000.0,0.00011784,2]
[404559307,1770291041163,-558.7627,0.00011811,2]
[404559308,1770291041174,-9869.81,0.00011911,2]
[404559309,1770291041184,-152.0,0.0001209,3]
[404559310,1770291041194,-587.0,0.00012167,2]
[404559311,1770291041204,-2351.0,0.00012169,2]
[404559312,1770291041214,-433.0,0.00012209,2]
[404559313,1770291041227,-152.0,0.00012444,4]
[404559314,1770291041236,-201.77401449,0.00012571,2]
[404559315,1770291041246,-361.09,0.00012589,2]
[404559316,1770291041255,-17864.61856264,0.00012639,2]
[404559317,1770291041264,-5177.87455583,0.00012719,2]
[404559318,1770291041274,-204.69,0.0001277,2]
[404559319,1770291041284,-500.0,0.00012788,2]
[404559320,1770291041294,-150.0,0.00012788,2]
[404559321,1770291041304,-150.0,0.00012788,2]
[404559322,1770291041315,-152.0,0.00012797,5]
[404559323,1770291041325,-163.85,0.00012822,2]
[404559324,1770291041335,-500.0,0.00012843,2]
[404559325,1770291041344,-150.0,0.00012843,2]
[404559326,1770291041355,-200.0,0.00012845,2]
[404559327,1770291041367,-500.0,0.00012845,2]
[404559328,1770291041380,-500.0,0.00012845,2]
[404559329,1770291041390,-151.68281621,0.00012845,2]
[404559330,1770291041656,-174.11816518,0.00012845,2]
[404559331,1770291041667,-500.0,0.00012845,2]
[404559332,1770291041677,-500.0,0.00012898,2]
[404559333,1770291041687,-200.0,0.00012898,2]
[404559334,1770291041697,-500.0,0.000129,2]
[404559335,1770291041707,-633.57498961,0.000129,2]
[404559336,1770291041716,-505.36603291,0.000129,2]
[404559337,1770291041727,-500.0,0.00012952,2]
[404559338,1770291041737,-500.0,0.00012955,2]
[404559339,1770291041747,-500.0,0.00013007,2]
[404559340,1770291041757,-500.0,0.00013009,2]
[404559341,1770291041766,-500.0,0.00013062,2]
[404559342,1770291041776,-563.96761622,0.00013064,2]
[404559343,1770291041786,-580.01386771,0.00013117,2]
[404559344,1770291041795,-1600.0,0.00013132,2]
[404559345,1770291041805,-152.0,0.00013151,6]
[404559346,1770291041814,-442.0,0.00013383,2]
[404559347,1770291041824,-3292.0,0.00013386,2]
[404559348,1770291041833,-736.0,0.00013412,2]
[404559349,1770291041843,-2239.56818661,0.0001344,2]
[404559350,1770291041852,-17864.61856264,0.00013516,2]
[404559351,1770291041862,-500.0,0.00013698,2]
[404559352,1770291041871,-500.0,0.00013698,2]
[404559353,1770291041881,-310.72048062,0.00013698,2]
[404559354,1770291041891,-500.0,0.00013698,2]
[404559355,1770291041900,-500.0,0.00013698,2]
[404559356,1770291041910,-500.0,0.00013698,2]
[404559357,1770291041919,-500.0,0.00013698,2]
[404559358,1770291041928,-500.0,0.00013698,2]
[404559359,1770291041937,-500.0,0.00013698,2]
[404559360,1770291041947,-500.0,0.00013698,2]
[404559361,1770291041956,-500.0,0.00013698,2]
[404559362,1770291041966,-500.0,0.00013698,2]
[404559363,1770291041987,-500.0,0.00013698,2]
[404559364,1770291042005,-500.0,0.00013698,2]
[404559365,1770291042017,-500.0,0.00013698,2]
[404559366,1770291042027,-500.0,0.00013698,2]
[404559367,1770291042040,-500.0,0.00013698,2]
[404559368,1770291042052,-500.0,0.00013698,2]
[404559369,1770291042063,-500.0,0.00013698,2]
[404559370,1770291042074,-438.26710356,0.00013698,2]
[404559371,1770291042094,-1032.6,0.00013698,2]
[404559372,1770291042115,-351.5182,0.00013698,2]
[404559373,1770291042134,-500.0,0.00013698,2]
[404559374,1770291042152,-500.0,0.00013698,2]
[404559375,1770291042167,-457.99797698,0.00013698,2]
[404559376,1770291042178,-200.0,0.00013699,2]
[404559377,1770291042191,-5177.87455583,0.00013755,2]
[404559378,1770291042202,-728.178456,0.00013954,2]
[404559379,1770291042214,-546.14569253,0.0001396,2]
[404559380,1770291042228,-5392.79698329,0.0001396,2]
[404559381,1770291042241,-1032.6,0.00013972,2]
[404559382,1770291042254,-160.0,0.00014168,2]
[404559383,1770291042265,-152.0,0.00014211,9]
[404559384,1770291042277,-1032.6,0.00014246,2]
[404559385,1770291042288,-1032.6,0.0001452,2]
[404559386,1770291042299,-152.0,0.00014564,10]
[404559387,1770291042311,-1600.0,0.00014591,2]
[404559388,1770291042321,-173.07272258,0.000146,2]
[404559389,1770291042330,-500.0,0.000146,2]
[404559390,1770291042341,-500.0,0.000146,2]
[404559391,1770291042352,-500.0,0.000146,2]
[404559392,1770291042363,-500.0,0.000146,2]
[404559393,1770291042374,-500.0,0.000146,2]
[404559394,1770291042383,-500.0,0.000146,2]
[404559395,1770291042396,-500.0,0.000146,2]
[404559396,1770291042407,-500.0,0.000146,2]
[404559397,1770291042416,-500.0,0.000146,2]
[404559398,1770291042427,-500.0,0.000146,2]
[404559399,1770291042437,-500.0,0.000146,2]
[404559400,1770291042447,-500.0,0.000146,2]
[404559401,1770291042460,-500.0,0.000146,2]
[404559402,1770291042469,-500.0,0.000146,2]
[404559403,1770291042480,-500.0,0.000146,2]
[404559404,1770291042490,-500.0,0.000146,2]
[404559405,1770291042500,-4609.0,0.00014724,2]
[404559406,1770291042510,-1252.0,0.00014746,2]
[404559407,1770291042519,-5177.87455583,0.00014791,2]
[404559408,1770291042528,-1032.6,0.00014794,2]
[404559409,1770291042539,-152.0,0.00014918,11]
[404559410,1770291042548,-250.0,0.00015,2]
[404559411,1770291042557,-29759.72262329,0.00015,2]
[404559412,1770291042567,-418.21759378,0.00015,2]
[404559413,1770291042576,-152.62,0.00015,2]
[404559414,1770291042585,-1032.6,0.00015068,2]
[404559415,1770291042594,-450.32,0.00015068,2]
[404559416,1770291042604,-2239.56818661,0.00015106,2]
[404559417,1770291042613,-1000.0,0.00015148,2]
[404559418,1770291042623,-500.0,0.00015148,2]
[404559419,1770291042633,-347.37162909,0.00015148,2]
[404559420,1770291042643,-1000.0,0.00015148,2]
[404559421,1770291042652,-500.0,0.00015149,2]
[404559422,1770291042661,-152.0,0.00015271,12]
[404559423,1770291042671,-1517.64,0.000153,2]
[404559424,1770291042681,-1032.6,0.00015342,2]
[404559425,1770291042691,-508.83519453,0.000154,2]
[404559426,1770291042700,-1032.6,0.00015616,2]
[404559427,1770291042710,-152.0,0.00015625,13]
[404559428,1770291042719,-1500.0,0.00015696,2]
[404559429,1770291042736,-1500.0,0.00015696,2]
[404559430,1770291042748,-152.0173956,0.00015726,2]
[404559431,1770291042758,-2046.60264728,0.00015807,2]
[404559432,1770291042769,-5177.87455583,0.00015827,2]
[404559433,1770291042780,-1032.6,0.0001589,2]
[404559434,1770291042790,-239.5,0.00015918,2]
[404559435,1770291042802,-990.55073207,0.0001596,2]
[404559436,1770291042813,-152.0,0.00015978,14]
[404559437,1770291042824,-175.0,0.00015999,2]
[404559438,1770291042835,-957.19260386,0.00016,2]
[404559439,1770291042845,-320.47368523,0.00016,2]
[404559441,1770291042856,-5956.53345956,0.00016,2]
[404559442,1770291042866,-200.744485,0.00016,2]
[404559443,1770291042875,-1600.0,0.0001605,2]
[404559444,1770291042885,-1032.6,0.00016164,2]
[404559445,1770291042894,-3554.0,0.00016196,2]
[404559446,1770291042904,-28813.33667727,0.000162,5]
[404559447,1770291042913,-1291.24412758,0.00016244,2]
[404559448,1770291042923,-1004.24108191,0.00016244,2]
[404559449,1770291042933,-152.0173956,0.00016287,2]
[404559450,1770291042943,-152.0,0.00016332,15]
[404559451,1770291042952,-1032.6,0.00016438,2]
[404559452,1770291042962,-450.32,0.00016438,2]
[404559453,1770291042975,-239.5,0.00016515,2]
[404559454,1770291042989,-152.0,0.00016685,16]
[404559455,1770291043000,-1032.6,0.00016712,2]
[404559456,1770291043011,-152.0173956,0.00016849,2]
[404559457,1770291043020,-5177.87455583,0.00016864,2]
[404559458,1770291043031,-500.0,0.00016875,2]
[404559459,1770291043041,-1032.6,0.00016986,2]
[404559460,1770291043050,-1271.0,0.00016988,2]
[404559461,1770291043059,-150.0,0.00016988,2]
[404559462,1770291043069,-1205.0,0.00016988,2]
[404559463,1770291043079,-917.0,0.00016988,2]
[404559464,1770291043088,-1335.0,0.00016988,2]
[404559466,1770291043102,-3491.028,0.00016988,2]
[404559467,1770291043112,-616.445,0.00016988,2]
[404559468,1770291043121,-150.78,0.00016999,2]
[404559469,1770291043131,-300.0,0.00017,2]
[404559470,1770291043142,-2034.15123261,0.00017,2]
[404559471,1770291043152,-152.0,0.00017038,17]
[404559472,1770291043161,-361.09,0.00017045,2]
[404559473,1770291043172,-239.5,0.00017112,2]
[404559474,1770291043191,-773.71,0.00017169,2]
[404559475,1770291043213,-204.69,0.00017251,2]
[404559476,1770291043229,-1032.6,0.0001726,2]
[404559477,1770291043238,-1000.0,0.0001726,2]
[404559478,1770291043249,-163.85,0.00017344,2]
[404559479,1770291043260,-869.18,0.00017367,2]
[404559480,1770291043271,-152.0,0.00017392,18]
[404559481,1770291043283,-152.0173956,0.00017411,2]
[404559482,1770291043293,-500.0,0.00017456,2]
[404559483,1770291043305,-1600.0,0.00017509,2]
[404559484,1770291043316,-2217.21,0.00017534,2]
[404559485,1770291043326,-187.98,0.00017534,2]
[404559486,1770291043337,-1032.6,0.00017534,2]
[404559487,1770291043347,-1000.0,0.00017534,2]
[404559488,1770291043356,-440.0,0.00017639,2]
[404559489,1770291043367,-656.0,0.00017691,2]
[404559490,1770291043380,-487.0,0.000177,2]
[404559491,1770291043390,-574.65,0.000177,2]
[404559492,1770291043402,-239.5,0.00017709,2]
[404559493,1770291043413,-440.0,0.00017722,2]
[404559494,1770291043424,-152.0,0.00017745,19]
[404559495,1770291043435,-656.0,0.00017803,2]
[404559496,1770291043445,-1032.6,0.00017808,2]
[404559497,1770291043456,-436.0,0.00017808,2]
[404559498,1770291043466,-1000.0,0.00017808,2]
[404559499,1770291043480,-440.0,0.00017817,2]
[404559500,1770291043490,-179.37879,0.0001782,2]
[404559501,1770291043499,-179.37879,0.0001782,2]
[404559502,1770291043509,-179.37878,0.0001782,2]
[404559503,1770291043519,-440.0,0.00017832,2]
[404559504,1770291043529,-200.0,0.00017855,2]
[404559505,1770291043538,-500.0,0.00017856,2]
[404559506,1770291043547,-500.0,0.00017856,2]
[404559507,1770291043557,-200.0,0.00017856,2]
[404559508,1770291043566,-656.0,0.00017862,2]
[404559509,1770291043576,-436.0,0.00017863,2]
[404559510,1770291043585,-25000.0,0.00017891,3]
[404559511,1770291043595,-611.74702431,0.00017899,2]
[404559512,1770291043605,-25000.0,0.000179,3]
[404559513,1770291043615,-160.0,0.000179,3]
[404559514,1770291043624,-10000.0,0.000179,2]
[404559515,1770291043633,-9068.51831638,0.000179,3]
[404559516,1770291043643,-5177.87455583,0.000179,2]
[404559517,1770291043653,-546.14569253,0.000179,2]
[404559518,1770291043662,-5392.79698329,0.000179,2]
[404559519,1770291043672,-728.178456,0.000179,2]
[404559520,1770291043681,-411.07033882,0.000179,2]
[404559521,1770291043691,-15046.0,0.000179,2]
[404559523,1770291043701,-436.0,0.00017918,2]
[404559524,1770291043710,-10414.738112,0.00017956,2]
[404559525,1770291043720,-656.0,0.00017965,2]
[404559526,1770291043734,-1101.54215647,0.0001797,2]
[404559527,1770291043743,-152.0173956,0.00017972,2]
[404559528,1770291043753,-436.0,0.00017972,2]
[404559529,1770291043763,-500.0,0.00017973,2]
[404559530,1770291043772,-500.0,0.00017973,2]
[404559531,1770291043781,-500.0,0.00017973,2]
[404559532,1770291043790,-500.0,0.00017973,2]
[404559533,1770291043799,-500.0,0.00017973,2]
[404559534,1770291043809,-500.0,0.00017973,2]
[404559535,1770291043818,-500.0,0.00017973,2]
[404559536,1770291043827,-520.97702983,0.00017973,2]
[404559537,1770291043836,-500.0,0.00017973,2]
[404559538,1770291043846,-500.0,0.00017973,2]
[404559539,1770291043855,-500.0,0.00017973,2]
[404559540,1770291043864,-500.0,0.00017973,2]
[404559541,1770291043873,-500.0,0.00017973,2]
[404559542,1770291043883,-500.0,0.00017973,2]
[404559543,1770291043892,-500.0,0.00017973,2]
[404559544,1770291043903,-500.0,0.00017973,2]
[404559545,1770291043912,-309.44398841,0.00017973,2]
[404559546,1770291043922,-500.0,0.00017973,2]
[404559547,1770291043931,-561.5530591,0.00017973,2]
[404559548,1770291043941,-500.0,0.00017973,2]
[404559549,1770291043950,-500.0,0.00017973,2]
[404559550,1770291043959,-500.0,0.00017973,2]
[404559551,1770291043968,-500.0,0.00017973,2]
[404559552,1770291043984,-160.11845722,0.00017973,2]
[404559553,1770291043994,-500.0,0.00017973,2]
[404559554,1770291044003,-500.0,0.00017973,2]
[404559555,1770291044013,-500.0,0.00017973,2]
[404559556,1770291044023,-500.0,0.00017973,2]
[404559557,1770291044032,-500.0,0.00017973,2]
[404559558,1770291044041,-500.0,0.00017973,2]
[404559559,1770291044051,-500.0,0.00017973,2]
[404559560,1770291044060,-500.0,0.00017973,2]
[404559561,1770291044070,-500.0,0.00017973,2]
[404559562,1770291044080,-502.08032841,0.00017973,2]
[404559563,1770291044089,-500.0,0.00017973,2]
[404559564,1770291044098,-500.0,0.00017973,2]
[404559565,1770291044111,-500.0,0.00017973,2]
[404559566,1770291044120,-500.0,0.00017973,2]
[404559567,1770291044130,-262.39107038,0.00017973,2]
[404559568,1770291044139,-500.0,0.00017973,2]
[404559569,1770291044150,-500.0,0.00017973,2]
[404559570,1770291044159,-500.0,0.00017973,2]
[404559571,1770291044169,-500.0,0.00017973,2]
[404559572,1770291044181,-502.60776792,0.00017982,2]
[404559573,1770291044191,-500.0,0.00017986,2]
[404559574,1770291044200,-500.0,0.00017989,2]
[404559575,1770291044210,-200.0,0.00017989,2]
[404559576,1770291044219,-151.0,0.00017989,2]
[404559577,1770291044236,-151.0,0.00017989,2]
[404559578,1770291044246,-151.0,0.00017989,2]
[404559579,1770291044256,-151.0,0.00017989,2]
[404559580,1770291044266,-151.0,0.00017989,2]
[404559581,1770291044275,-151.0,0.00017989,2]
[404559582,1770291044284,-151.0,0.00017989,2]
[404559583,1770291044294,-151.0,0.00017989,2]
[404559584,1770291044303,-151.0,0.00017989,2]
[404559585,1770291044313,-151.0,0.00017989,2]
[404559586,1770291044324,-151.0,0.00017989,2]
[404559587,1770291044334,-151.0,0.00017989,2]
[404559588,1770291044345,-151.0,0.00017989,2]
[404559589,1770291044354,-151.0,0.00017989,2]
[404559590,1770291044364,-151.0,0.00017989,2]
[404559591,1770291044374,-151.0,0.00017989,2]
[404559592,1770291044383,-151.0,0.00017989,2]
[404559593,1770291044394,-151.0,0.00017989,2]
[404559594,1770291044404,-151.0,0.00017989,2]
[404559595,1770291044414,-200.0,0.00017989,2]
[404559596,1770291044424,-151.0,0.00017989,2]
[404559597,1770291044434,-93345.42532855,0.0001799,3]
[404559598,1770291044443,-35113.88286834,0.0001799,2]